[Event "2026 Biel Blitz Open"]
[Site "Biel, CH"]
[Date "2026.07.19"]
[Round "1"]
[White "Thorfinnsson, Bjorn"]
[Black "Berezovskii, Arina"]
[Result "1-0"]
[Board "11"]
[TimeControl "180+2"]
[WhiteFideId "2300982"]
[BlackFideId "34449850"]
[WhiteElo "2396"]
[BlackElo "1851"]
[WhiteTitle "IM"]
[BlackTitle "WCM"]
[WhiteClock "0:00:25"]
[BlackClock "0:00:06"]
[Variant "Standard"]
[EndDate "2026.07.19"]
[EndTime "11:47:32"]

1. d4 {[%clk 0:03:02]}  Nf6 {[%clk 0:03:03]} 2. Nf3 {[%clk 0:03:03]}  e6 {[%clk 0:03:05]} 3. Bg5 {[%clk 0:03:04]}  Be7 {[%clk 0:03:02]}
4. e3 {[%clk 0:03:05]}  b6 {[%clk 0:03:03]} 5. Bd3 {[%clk 0:03:06]}  Bb7 {[%clk 0:03:04]} 6. Nbd2 {[%clk 0:03:07]}  h6 {[%clk 0:03:04]}
7. Bh4 {[%clk 0:03:08]}  O-O {[%clk 0:03:04]} 8. h3 {[%clk 0:03:07]}  d6 {[%clk 0:03:00]} 9. g4 {[%clk 0:03:07]}  Nh7 {[%clk 0:02:52]}
10. Bg3 {[%clk 0:03:05]}  c5 {[%clk 0:02:45]} 11. c3 {[%clk 0:03:05]}  Nd7 {[%clk 0:02:42]} 12. Qc2 {[%clk 0:03:06]}  Ng5 {[%clk 0:02:34]}
13. Nxg5 {[%clk 0:02:43]}  Bxh1 {[%clk 0:02:15]} 14. Bh7+ {[%clk 0:02:43]}  Kh8 {[%clk 0:02:16]} 15. Bg8 {[%clk 0:02:44]}  f5 {[%clk 0:01:44]}
16. Nxe6 {[%clk 0:02:37]}  Qe8 {[%clk 0:01:32]} 17. Nxf8 {[%clk 0:02:36]}  Nxf8 {[%clk 0:01:00]} 18. Bc4 {[%clk 0:02:35]}  fxg4 {[%clk 0:00:54]}
19. hxg4 {[%clk 0:02:30]}  b5 {[%clk 0:00:44]} 20. Be2 {[%clk 0:02:25]}  Bb7 {[%clk 0:00:32]} 21. O-O-O {[%clk 0:02:20]}  b4 {[%clk 0:00:38]}
22. c4 {[%clk 0:02:12]}  cxd4 {[%clk 0:00:37]} 23. exd4 {[%clk 0:02:13]}  a5 {[%clk 0:00:34]} 24. Bf3 {[%clk 0:01:53]}  Bxf3 {[%clk 0:00:30]}
25. Nxf3 {[%clk 0:01:54]}  a4 {[%clk 0:00:24]} 26. Qe4 {[%clk 0:01:51]}  Rc8 {[%clk 0:00:24]} 27. Re1 {[%clk 0:01:37]}  Rxc4+ {[%clk 0:00:11]}
28. Kb1 {[%clk 0:01:38]}  Qg6 {[%clk 0:00:11]} 29. Qxg6 {[%clk 0:01:19]}  Nxg6 {[%clk 0:00:12]} 30. Re6 {[%clk 0:01:20]}  Kh7 {[%clk 0:00:07]}
31. Bxd6 {[%clk 0:01:20]}  Bxd6 {[%clk 0:00:04]} 32. Rxd6 {[%clk 0:01:21]}  Nf4 {[%clk 0:00:04]} 33. Ne5 {[%clk 0:01:11]}  Rc7 {[%clk 0:00:03]}
34. Rc6 {[%clk 0:01:02]}  Re7 {[%clk 0:00:03]} 35. Rc4 {[%clk 0:01:00]}  Rb7 {[%clk 0:00:03]} 36. Kc2 {[%clk 0:00:51]}  h5 {[%clk 0:00:04]}
37. gxh5 {[%clk 0:00:52]}  Nxh5 {[%clk 0:00:05]} 38. Nd3 {[%clk 0:00:53]}  b3+ {[%clk 0:00:05]} 39. axb3 {[%clk 0:00:54]}  axb3+ {[%clk 0:00:06]}
40. Kc3 {[%clk 0:00:54]}  Nf6 {[%clk 0:00:05]} 41. f3 {[%clk 0:00:35]}  Nd5+ {[%clk 0:00:05]} 42. Kd2 {[%clk 0:00:36]}  Re7 {[%clk 0:00:03]}
43. Rc5 {[%clk 0:00:37]}  Ne3 {[%clk 0:00:03]} 44. Ne5 {[%clk 0:00:32]}  Nf5 {[%clk 0:00:03]} 45. Kd3 {[%clk 0:00:31]}  Rb7 {[%clk 0:00:04]}
46. Nc4 {[%clk 0:00:19]}  Ne7 {[%clk 0:00:03]} 47. Na5 {[%clk 0:00:20]}  Rb8 {[%clk 0:00:03]} 48. Kc3 {[%clk 0:00:20]}  Ng6 {[%clk 0:00:03]}
49. Nxb3 {[%clk 0:00:21]}  Nf4 {[%clk 0:00:04]} 50. Nd2 {[%clk 0:00:22]}  Ne2+ {[%clk 0:00:04]} 51. Kd3 {[%clk 0:00:23]}  Nf4+ {[%clk 0:00:04]}
52. Ke4 {[%clk 0:00:24]}  Rxb2 {[%clk 0:00:03]} 53. Nc4 {[%clk 0:00:24]}  Rc2 {[%clk 0:00:03]} 54. Kxf4 {[%clk 0:00:24]}  g5+ {[%clk 0:00:03]}
55. Kxg5 {[%clk 0:00:24]}  Kg7 {[%clk 0:00:03]} 56. d5 {[%clk 0:00:22]}  Rc3 {[%clk 0:00:04]} 57. Rc7+ {[%clk 0:00:22]}  Kf8 {[%clk 0:00:05]}
58. f4 {[%clk 0:00:23]}  Rd3 {[%clk 0:00:05]} 59. d6 {[%clk 0:00:24]}  Rd5+ {[%clk 0:00:05]} 60. Kf6 {[%clk 0:00:25]}  Ke8 {[%clk 0:00:06]}
61. Ke6 {[%clk 0:00:26]}  Kd8 {[%clk 0:00:06]} 62. Kxd5 {[%clk 0:00:25]} 1-0

[Event "2026 Biel Blitz Open"]
[Site "Biel, CH"]
[Date "2026.07.19"]
[Round "1"]
[White "Haimovich, Tal"]
[Black "Rohde, Bernhard"]
[Result "1-0"]
[Board "13"]
[TimeControl "180+2"]
[WhiteFideId "2801698"]
[BlackFideId "1323016"]
[WhiteElo "2347"]
[BlackElo "1845"]
[WhiteTitle "IM"]
[WhiteClock "0:01:02"]
[BlackClock "0:01:56"]
[Variant "Standard"]
[EndDate "2026.07.19"]
[EndTime "11:47:32"]

1. Nf3 {[%clk 0:03:03]}  e6 {[%clk 0:03:04]} 2. b3 {[%clk 0:03:03]}  b6 {[%clk 0:02:59]} 3. Bb2 {[%clk 0:03:04]}  f5 {[%clk 0:02:58]}
4. c4 {[%clk 0:03:04]}  Nf6 {[%clk 0:02:58]} 5. g3 {[%clk 0:03:03]}  Bb7 {[%clk 0:02:58]} 6. Bg2 {[%clk 0:03:04]}  c5 {[%clk 0:02:56]}
7. O-O {[%clk 0:03:03]}  Be7 {[%clk 0:02:55]} 8. d4 {[%clk 0:02:55]}  cxd4 {[%clk 0:02:54]} 9. Nxd4 {[%clk 0:02:56]}  Bxg2 {[%clk 0:02:52]}
10. Kxg2 {[%clk 0:02:56]}  Nc6 {[%clk 0:02:54]} 11. Nxc6 {[%clk 0:02:41]}  dxc6 {[%clk 0:02:54]} 12. Nd2 {[%clk 0:02:41]}  Qc7 {[%clk 0:02:53]}
13. Nf3 {[%clk 0:02:41]}  Rd8 {[%clk 0:02:44]} 14. Qc2 {[%clk 0:02:42]}  O-O {[%clk 0:02:39]} 15. Rad1 {[%clk 0:02:42]}  Ng4 {[%clk 0:02:24]}
16. Rxd8 {[%clk 0:02:08]}  Rxd8 {[%clk 0:02:25]} 17. Rd1 {[%clk 0:02:03]}  Bc5 {[%clk 0:02:25]} 18. Rxd8+ {[%clk 0:01:13]}  Qxd8 {[%clk 0:02:26]}
19. e3 {[%clk 0:01:14]}  Bxe3 {[%clk 0:02:26]} 20. Qe2 {[%clk 0:01:14]}  Bc5 {[%clk 0:02:17]} 21. Qxe6+ {[%clk 0:01:13]}  Kh8 {[%clk 0:02:18]}
22. Ng5 {[%clk 0:01:10]}  Nh6 {[%clk 0:02:07]} 23. Qxh6 {[%clk 0:01:08]}  Qf8 {[%clk 0:01:56]} 24. Qxh7# {[%clk 0:01:02]} 1-0

[Event "2026 Biel Blitz Open"]
[Site "Biel, CH"]
[Date "2026.07.19"]
[Round "1"]
[White "Sharku, Burim"]
[Black "Tureshbayev, Anuar"]
[Result "0-1"]
[Board "14"]
[TimeControl "180+2"]
[WhiteFideId "551075466"]
[BlackFideId "651081709"]
[WhiteElo "1843"]
[BlackElo "2328"]
[BlackTitle "FM"]
[WhiteClock "0:01:08"]
[BlackClock "0:00:06"]
[Variant "Standard"]
[EndDate "2026.07.19"]
[EndTime "11:47:32"]

1. Nf3 {[%clk 0:03:03]}  Nf6 {[%clk 0:02:59]} 2. g3 {[%clk 0:03:04]}  b5 {[%clk 0:03:00]} 3. Bg2 {[%clk 0:03:05]}  Bb7 {[%clk 0:03:01]}
4. d4 {[%clk 0:03:07]}  e6 {[%clk 0:03:00]} 5. O-O {[%clk 0:03:07]}  c5 {[%clk 0:03:01]} 6. e3 {[%clk 0:03:07]}  Be7 {[%clk 0:02:55]}
7. b3 {[%clk 0:03:08]}  O-O {[%clk 0:02:54]} 8. Bb2 {[%clk 0:03:09]}  Nc6 {[%clk 0:02:43]} 9. c4 {[%clk 0:03:07]}  bxc4 {[%clk 0:02:36]}
10. bxc4 {[%clk 0:03:08]}  cxd4 {[%clk 0:02:32]} 11. exd4 {[%clk 0:03:01]}  Rc8 {[%clk 0:02:00]} 12. Nbd2 {[%clk 0:03:01]}  Na5 {[%clk 0:01:36]}
13. c5 {[%clk 0:02:56]}  d6 {[%clk 0:01:31]} 14. cxd6 {[%clk 0:02:50]}  Bxd6 {[%clk 0:01:32]} 15. Nb3 {[%clk 0:02:41]}  Nc4 {[%clk 0:01:30]}
16. Rb1 {[%clk 0:02:32]}  Be4 {[%clk 0:01:29]} 17. Nbd2 {[%clk 0:02:17]}  Nxd2 {[%clk 0:01:23]} 18. Nxd2 {[%clk 0:02:13]}  Bxb1 {[%clk 0:01:22]}
19. Qxb1 {[%clk 0:02:14]}  Qb6 {[%clk 0:01:18]} 20. Qa1 {[%clk 0:02:11]}  Rc2 {[%clk 0:01:16]} 21. Bc1 {[%clk 0:02:02]}  Rfc8 {[%clk 0:01:13]}
22. Nb3 {[%clk 0:01:59]}  a5 {[%clk 0:00:57]} 23. Be3 {[%clk 0:02:00]}  a4 {[%clk 0:00:51]} 24. Nc5 {[%clk 0:01:58]}  Qb2 {[%clk 0:00:31]}
25. a3 {[%clk 0:01:51]}  Ng4 {[%clk 0:00:21]} 26. Qb1 {[%clk 0:01:43]}  Qxb1 {[%clk 0:00:20]} 27. Rxb1 {[%clk 0:01:45]}  Nxe3 {[%clk 0:00:21]}
28. fxe3 {[%clk 0:01:45]}  g5 {[%clk 0:00:18]} 29. Nxa4 {[%clk 0:01:42]}  Rc1+ {[%clk 0:00:18]} 30. Rxc1 {[%clk 0:01:42]}  Rxc1+ {[%clk 0:00:19]}
31. Kf2 {[%clk 0:01:43]}  Bxa3 {[%clk 0:00:20]} 32. Kf3 {[%clk 0:01:39]}  h5 {[%clk 0:00:18]} 33. h3 {[%clk 0:01:39]}  Kg7 {[%clk 0:00:19]}
34. e4 {[%clk 0:01:36]}  Rc4 {[%clk 0:00:17]} 35. Nb6 {[%clk 0:01:35]}  Rxd4 {[%clk 0:00:17]} 36. Ke3 {[%clk 0:01:31]}  Bc5 {[%clk 0:00:17]}
37. Nc8 {[%clk 0:01:19]}  Rd8+ {[%clk 0:00:18]} 38. Kf3 {[%clk 0:01:20]}  Rxc8 {[%clk 0:00:18]} 39. e5 {[%clk 0:01:22]}  Rd8 {[%clk 0:00:16]}
40. Ke4 {[%clk 0:01:20]}  Rd4+ {[%clk 0:00:17]} 41. Kf3 {[%clk 0:01:21]}  Kg6 {[%clk 0:00:17]} 42. Ke2 {[%clk 0:01:21]}  Kf5 {[%clk 0:00:17]}
43. Bc6 {[%clk 0:01:21]}  Kxe5 {[%clk 0:00:17]} 44. Be8 {[%clk 0:01:22]}  h4 {[%clk 0:00:13]} 45. g4 {[%clk 0:01:23]}  Re4+ {[%clk 0:00:13]}
46. Kf3 {[%clk 0:01:22]}  Re3+ {[%clk 0:00:14]} 47. Kg2 {[%clk 0:01:24]}  Rg3+ {[%clk 0:00:15]} 48. Kh2 {[%clk 0:01:25]}  Kf4 {[%clk 0:00:10]}
49. Bxf7 {[%clk 0:01:25]}  Bg1+ {[%clk 0:00:08]} 50. Kh1 {[%clk 0:01:25]}  Kf3 {[%clk 0:00:09]} 51. Bxe6 {[%clk 0:01:16]}  Kf2 {[%clk 0:00:09]}
52. Bd5 {[%clk 0:01:08]}  Rxh3+ {[%clk 0:00:06]} 0-1

[Event "2026 Biel Blitz Open"]
[Site "Biel, CH"]
[Date "2026.07.19"]
[Round "1"]
[White "Huang,Hsuan-Chen"]
[Black "Dong, Hongfu"]
[Result "1-0"]
[Board "16"]
[TimeControl "180+2"]
[WhiteFideId "16303121"]
[BlackFideId "8626960"]
[WhiteElo "1833"]
[BlackElo "2290"]
[WhiteClock "0:00:29"]
[BlackClock "0:01:18"]
[Variant "Standard"]
[EndDate "2026.07.19"]
[EndTime "11:47:32"]

1. d4 {[%clk 0:03:02]}  f5 {[%clk 0:03:00]} 2. Nf3 {[%clk 0:03:02]}  Nf6 {[%clk 0:03:00]} 3. e3 {[%clk 0:03:02]}  d6 {[%clk 0:02:59]}
4. Bd3 {[%clk 0:03:02]}  g6 {[%clk 0:03:00]} 5. O-O {[%clk 0:03:02]}  Bg7 {[%clk 0:03:01]} 6. Re1 {[%clk 0:03:02]}  O-O {[%clk 0:02:57]}
7. Nbd2 {[%clk 0:03:02]}  Nc6 {[%clk 0:02:44]} 8. e4 {[%clk 0:02:59]}  fxe4 {[%clk 0:02:32]} 9. Nxe4 {[%clk 0:02:59]}  Bg4 {[%clk 0:02:31]}
10. d5 {[%clk 0:02:16]}  Ne5 {[%clk 0:01:51]} 11. Neg5 {[%clk 0:02:11]}  Kh8 {[%clk 0:01:00]} 12. Nxe5 {[%clk 0:01:36]}  dxe5 {[%clk 0:00:58]}
13. f3 {[%clk 0:01:34]}  Bc8 {[%clk 0:00:48]} 14. Bc4 {[%clk 0:01:32]}  Nh5 {[%clk 0:00:46]} 15. Qe2 {[%clk 0:01:23]}  Qd6 {[%clk 0:00:39]}
16. Ne4 {[%clk 0:01:21]}  Qd8 {[%clk 0:00:38]} 17. Be3 {[%clk 0:01:20]}  b6 {[%clk 0:00:39]} 18. Rad1 {[%clk 0:01:20]}  Bf5 {[%clk 0:00:39]}
19. Nf2 {[%clk 0:01:11]}  Nf6 {[%clk 0:00:38]} 20. Bc1 {[%clk 0:01:09]}  Nd7 {[%clk 0:00:36]} 21. Nd3 {[%clk 0:01:02]}  a5 {[%clk 0:00:33]}
22. b3 {[%clk 0:01:03]}  a4 {[%clk 0:00:35]} 23. Bb2 {[%clk 0:01:04]}  axb3 {[%clk 0:00:35]} 24. axb3 {[%clk 0:01:05]}  Bxd3 {[%clk 0:00:36]}
25. Qxd3 {[%clk 0:01:04]}  Ra2 {[%clk 0:00:36]} 26. Bc3 {[%clk 0:00:57]}  Nc5 {[%clk 0:00:36]} 27. Qe2 {[%clk 0:00:58]}  Rf5 {[%clk 0:00:31]}
28. Ra1 {[%clk 0:00:50]}  Rxa1 {[%clk 0:00:32]} 29. Rxa1 {[%clk 0:00:51]}  Qf8 {[%clk 0:00:23]} 30. Bb5 {[%clk 0:00:51]}  h6 {[%clk 0:00:12]}
31. Bc6 {[%clk 0:00:46]}  Kh7 {[%clk 0:00:13]} 32. Ra8 {[%clk 0:00:42]}  Qf7 {[%clk 0:00:14]} 33. Qc4 {[%clk 0:00:42]}  e4 {[%clk 0:00:13]}
34. Be8 {[%clk 0:00:38]}  Qf8 {[%clk 0:00:07]} 35. Bxg6+ {[%clk 0:00:40]}  Kxg6 {[%clk 0:00:09]} 36. Rxf8 {[%clk 0:00:39]}  Rxf8 {[%clk 0:00:09]}
37. Bxg7 {[%clk 0:00:37]}  Kxg7 {[%clk 0:00:08]} 38. fxe4 {[%clk 0:00:37]}  Rf4 {[%clk 0:00:12]} 39. Qc3+ {[%clk 0:00:33]}  Kf7 {[%clk 0:00:14]}
40. e5 {[%clk 0:00:30]}  Rf5 {[%clk 0:00:12]} 41. e6+ {[%clk 0:00:31]}  Kg6 {[%clk 0:00:13]} 42. b4 {[%clk 0:00:30]}  Ne4 {[%clk 0:00:13]}
43. Qxc7 {[%clk 0:00:30]}  Rxd5 {[%clk 0:00:14]} 44. h3 {[%clk 0:00:30]}  Rd1+ {[%clk 0:00:11]} 45. Kh2 {[%clk 0:00:31]}  Nd2 {[%clk 0:00:13]}
46. Qxe7 {[%clk 0:00:26]}  Nf1+ {[%clk 0:00:14]} 47. Kg1 {[%clk 0:00:27]}  Ng3+ {[%clk 0:00:07]} 48. Kf2 {[%clk 0:00:26]}  Ne4+ {[%clk 0:00:08]}
49. Ke2 {[%clk 0:00:19]}  Nc3+ {[%clk 0:01:10]} 50. Kf2 {[%clk 0:00:20]}  Ne4+ {[%clk 0:01:11]} 51. Ke3 {[%clk 0:00:21]}  Re1+ {[%clk 0:01:13]}
52. Kf4 {[%clk 0:00:22]}  Ng5 {[%clk 0:01:12]} 53. h4 {[%clk 0:00:21]}  Nxe6+ {[%clk 0:01:13]} 54. Kg3 {[%clk 0:00:21]}  Kf5 {[%clk 0:01:09]}
55. Qf7+ {[%clk 0:00:21]}  Ke5 {[%clk 0:01:11]} 56. Qh5+ {[%clk 0:00:18]}  Ke4 {[%clk 0:01:12]} 57. Qxh6 {[%clk 0:00:16]}  Re3+ {[%clk 0:01:13]}
58. Kh2 {[%clk 0:00:17]}  Nf4 {[%clk 0:01:14]} 59. Qc6+ {[%clk 0:00:15]}  Kf5 {[%clk 0:01:15]} 60. Qxb6 {[%clk 0:00:16]}  Re2 {[%clk 0:01:17]}
61. Qb5+ {[%clk 0:00:16]}  Kg4 {[%clk 0:01:18]} 62. Qxe2+ {[%clk 0:00:16]}  Nxe2 {[%clk 0:01:19]} 63. c4 {[%clk 0:00:18]}  Kxh4 {[%clk 0:01:13]}
64. b5 {[%clk 0:00:19]}  Nd4 {[%clk 0:01:15]} 65. b6 {[%clk 0:00:18]}  Kg4 {[%clk 0:01:16]} 66. c5 {[%clk 0:00:19]}  Kf5 {[%clk 0:01:17]}
67. Kh3 {[%clk 0:00:19]}  Ke6 {[%clk 0:01:19]} 68. g4 {[%clk 0:00:20]}  Kd5 {[%clk 0:01:20]} 69. b7 {[%clk 0:00:19]}  Nc6 {[%clk 0:01:18]}
70. g5 {[%clk 0:00:20]}  Ke6 {[%clk 0:01:05]} 71. Kh4 {[%clk 0:00:21]}  Kf7 {[%clk 0:01:07]} 72. Kh5 {[%clk 0:00:23]}  Kg7 {[%clk 0:01:08]}
73. g6 {[%clk 0:00:21]}  Nb8 {[%clk 0:01:10]} 74. Kg5 {[%clk 0:00:22]}  Nc6 {[%clk 0:01:12]} 75. Kf5 {[%clk 0:00:23]}  Nb8 {[%clk 0:01:13]}
76. Ke6 {[%clk 0:00:24]}  Kxg6 {[%clk 0:01:14]} 77. Kd6 {[%clk 0:00:25]}  Kf6 {[%clk 0:01:15]} 78. Kc7 {[%clk 0:00:26]}  Na6+ {[%clk 0:01:17]}
79. Kb6 {[%clk 0:00:28]}  Nb8 {[%clk 0:01:18]} 80. c6 {[%clk 0:00:29]} 1-0

[Event "2026 Biel Blitz Open"]
[Site "Biel, CH"]
[Date "2026.07.19"]
[Round "1"]
[White "Omar, Noaman"]
[Black "Kutonov, Yehor"]
[Result "1-0"]
[Board "17"]
[TimeControl "180+2"]
[WhiteFideId "9300244"]
[BlackFideId "1364804"]
[WhiteElo "2274"]
[BlackElo "1805"]
[WhiteTitle "IM"]
[WhiteClock "0:00:13"]
[BlackClock "0:00:16"]
[Variant "Standard"]
[EndDate "2026.07.19"]
[EndTime "11:47:32"]

1. d4 {[%clk 0:03:02]}  d5 {[%clk 0:03:01]} 2. c4 {[%clk 0:03:03]}  e6 {[%clk 0:03:02]} 3. Nc3 {[%clk 0:03:03]}  Be7 {[%clk 0:03:03]}
4. cxd5 {[%clk 0:02:58]}  exd5 {[%clk 0:03:05]} 5. Bf4 {[%clk 0:02:58]}  c6 {[%clk 0:03:05]} 6. e3 {[%clk 0:02:58]}  Nf6 {[%clk 0:03:06]}
7. Bd3 {[%clk 0:02:57]}  Nbd7 {[%clk 0:02:58]} 8. h3 {[%clk 0:02:54]}  O-O {[%clk 0:02:56]} 9. Nf3 {[%clk 0:02:55]}  Re8 {[%clk 0:02:57]}
10. O-O {[%clk 0:02:51]}  a6 {[%clk 0:02:49]} 11. Rb1 {[%clk 0:02:47]}  Bf8 {[%clk 0:02:15]} 12. Qc2 {[%clk 0:02:43]}  g6 {[%clk 0:02:11]}
13. b4 {[%clk 0:02:43]}  b5 {[%clk 0:02:04]} 14. Rfc1 {[%clk 0:02:21]}  Nb6 {[%clk 0:02:05]} 15. Ne5 {[%clk 0:02:09]}  Bb7 {[%clk 0:01:58]}
16. Bg5 {[%clk 0:01:59]}  Bg7 {[%clk 0:01:44]} 17. Re1 {[%clk 0:01:21]}  Nc4 {[%clk 0:01:38]} 18. Bxc4 {[%clk 0:01:03]}  bxc4 {[%clk 0:01:23]}
19. a4 {[%clk 0:01:00]}  Qd6 {[%clk 0:01:11]} 20. Bf4 {[%clk 0:00:53]}  Qe7 {[%clk 0:01:06]} 21. b5 {[%clk 0:00:44]}  cxb5 {[%clk 0:00:55]}
22. axb5 {[%clk 0:00:44]}  a5 {[%clk 0:00:49]} 23. Qa4 {[%clk 0:00:44]}  Nd7 {[%clk 0:00:47]} 24. Nc6 {[%clk 0:00:42]}  Qe6 {[%clk 0:00:39]}
25. e4 {[%clk 0:00:35]}  Nb6 {[%clk 0:00:36]} 26. Qc2 {[%clk 0:00:32]}  dxe4 {[%clk 0:00:29]} 27. Rxe4 {[%clk 0:00:32]}  Qd7 {[%clk 0:00:29]}
28. Rbe1 {[%clk 0:00:28]}  Bxc6 {[%clk 0:00:28]} 29. bxc6 {[%clk 0:00:26]}  Qxc6 {[%clk 0:00:29]} 30. d5 {[%clk 0:00:21]}  Qd7 {[%clk 0:00:28]}
31. Be5 {[%clk 0:00:15]}  f6 {[%clk 0:00:21]} 32. Bd4 {[%clk 0:00:15]}  Rxe4 {[%clk 0:00:17]} 33. Qxe4 {[%clk 0:00:15]}  Nc8 {[%clk 0:00:18]}
34. d6 {[%clk 0:00:12]}  Nxd6 {[%clk 0:00:16]} 35. Qxa8+ {[%clk 0:00:13]} 1-0

[Event "2026 Biel Blitz Open"]
[Site "Biel, CH"]
[Date "2026.07.19"]
[Round "1"]
[White "Jelicic, Hugo"]
[Black "Kukushkin, Ivan"]
[Result "0-1"]
[Board "18"]
[TimeControl "180+2"]
[WhiteFideId "1349040"]
[BlackFideId "11634103"]
[WhiteElo "1804"]
[BlackElo "2265"]
[BlackTitle "FM"]
[WhiteClock "0:00:27"]
[BlackClock "0:02:05"]
[Variant "Standard"]
[EndDate "2026.07.19"]
[EndTime "11:47:32"]

1. d4 {[%clk 0:03:03]}  d5 {[%clk 0:03:04]} 2. Nf3 {[%clk 0:03:03]}  Nf6 {[%clk 0:03:05]} 3. Bf4 {[%clk 0:03:02]}  e6 {[%clk 0:03:05]}
4. e3 {[%clk 0:03:03]}  c5 {[%clk 0:03:02]} 5. c3 {[%clk 0:03:03]}  Nc6 {[%clk 0:03:04]} 6. Nbd2 {[%clk 0:03:04]}  Nh5 {[%clk 0:03:05]}
7. Bg5 {[%clk 0:03:02]}  f6 {[%clk 0:03:06]} 8. Bh4 {[%clk 0:03:03]}  g6 {[%clk 0:03:07]} 9. Bd3 {[%clk 0:02:56]}  Be7 {[%clk 0:03:07]}
10. Qc2 {[%clk 0:02:05]}  c4 {[%clk 0:02:49]} 11. Be2 {[%clk 0:02:01]}  Ng7 {[%clk 0:02:44]} 12. e4 {[%clk 0:01:55]}  O-O {[%clk 0:02:24]}
13. O-O {[%clk 0:01:48]}  g5 {[%clk 0:02:20]} 14. Bg3 {[%clk 0:01:49]}  f5 {[%clk 0:02:21]} 15. exd5 {[%clk 0:01:28]}  exd5 {[%clk 0:02:21]}
16. Be5 {[%clk 0:01:05]}  g4 {[%clk 0:02:11]} 17. Ne1 {[%clk 0:00:27]}  Nxe5 {[%clk 0:02:07]} 18. dxe5 {[%clk 0:00:28]}  f4 {[%clk 0:02:09]}
19. f3 {[%clk 0:00:27]}  Bc5+ {[%clk 0:02:05]} 0-1

[Event "2026 Biel Blitz Open"]
[Site "Biel, CH"]
[Date "2026.07.19"]
[Round "1"]
[White "Cao, Qingfeng"]
[Black "Zumbrunn, Simon"]
[Result "1-0"]
[Board "19"]
[TimeControl "180+2"]
[WhiteFideId "8627568"]
[BlackFideId "1364146"]
[WhiteElo "2264"]
[BlackElo "1802"]
[WhiteTitle "IM"]
[WhiteClock "0:00:09"]
[BlackClock "0:00:12"]
[Variant "Standard"]
[EndDate "2026.07.19"]
[EndTime "11:47:32"]

1. d4 {[%clk 0:03:03]}  Nf6 {[%clk 0:03:02]} 2. c4 {[%clk 0:03:04]}  c5 {[%clk 0:03:03]} 3. d5 {[%clk 0:03:05]}  g6 {[%clk 0:03:05]}
4. Nc3 {[%clk 0:03:05]}  Bg7 {[%clk 0:03:06]} 5. Nf3 {[%clk 0:03:05]}  d6 {[%clk 0:03:07]} 6. g3 {[%clk 0:03:06]}  O-O {[%clk 0:03:06]}
7. Bg2 {[%clk 0:03:07]}  Bg4 {[%clk 0:03:02]} 8. O-O {[%clk 0:03:03]}  Na6 {[%clk 0:03:02]} 9. Nd2 {[%clk 0:02:51]}  Nc7 {[%clk 0:02:59]}
10. a4 {[%clk 0:02:51]}  a6 {[%clk 0:02:59]} 11. a5 {[%clk 0:02:42]}  Bd7 {[%clk 0:02:32]} 12. e4 {[%clk 0:02:34]}  Rb8 {[%clk 0:02:24]}
13. f4 {[%clk 0:02:26]}  e6 {[%clk 0:02:23]} 14. Nf3 {[%clk 0:02:21]}  exd5 {[%clk 0:02:21]} 15. cxd5 {[%clk 0:02:20]}  Re8 {[%clk 0:02:20]}
16. Re1 {[%clk 0:02:17]}  Bb5 {[%clk 0:01:45]} 17. h3 {[%clk 0:01:58]}  h5 {[%clk 0:01:14]} 18. Kh2 {[%clk 0:01:56]}  Nd7 {[%clk 0:01:04]}
19. Bd2 {[%clk 0:01:41]}  c4 {[%clk 0:00:59]} 20. Nxb5 {[%clk 0:01:25]}  axb5 {[%clk 0:00:45]} 21. Bc3 {[%clk 0:01:26]}  Nc5 {[%clk 0:00:41]}
22. Bxg7 {[%clk 0:01:23]}  Kxg7 {[%clk 0:00:42]} 23. Qd4+ {[%clk 0:01:12]}  Kg8 {[%clk 0:00:43]} 24. e5 {[%clk 0:01:02]}  Nb3 {[%clk 0:00:44]}
25. Qe4 {[%clk 0:00:52]}  Nxa1 {[%clk 0:00:44]} 26. Rxa1 {[%clk 0:00:52]}  Na6 {[%clk 0:00:46]} 27. e6 {[%clk 0:00:43]}  Nc5 {[%clk 0:00:43]}
28. Qc2 {[%clk 0:00:35]}  Qf6 {[%clk 0:00:38]} 29. Ng5 {[%clk 0:00:33]}  fxe6 {[%clk 0:00:33]} 30. dxe6 {[%clk 0:00:34]}  Nd3 {[%clk 0:00:18]}
31. Be4 {[%clk 0:00:20]}  Nxf4 {[%clk 0:00:18]} 32. h4 {[%clk 0:00:11]}  Nd3 {[%clk 0:00:17]} 33. Rd1 {[%clk 0:00:05]}  Qf2+ {[%clk 0:00:06]}
34. Qxf2 {[%clk 0:00:06]}  Nxf2 {[%clk 0:00:07]} 35. Rxd6 {[%clk 0:00:07]}  Nxe4 {[%clk 0:00:08]} 36. Nxe4 {[%clk 0:00:08]}  Re7 {[%clk 0:00:08]}
37. Rb6 {[%clk 0:00:09]}  Rbe8 {[%clk 0:00:08]} 38. Ng5 {[%clk 0:00:10]}  Kg7 {[%clk 0:00:09]} 39. Rxb5 {[%clk 0:00:11]}  Kf6 {[%clk 0:00:08]}
40. Rb6 {[%clk 0:00:07]}  Rc8 {[%clk 0:00:09]} 41. Kg2 {[%clk 0:00:05]}  c3 {[%clk 0:00:11]} 42. bxc3 {[%clk 0:00:06]}  Rxc3 {[%clk 0:00:12]}
43. Ne4+ {[%clk 0:00:08]}  Ke5 {[%clk 0:00:11]} 44. Nxc3 {[%clk 0:00:07]}  Rxe6 {[%clk 0:00:09]} 45. Rxe6+ {[%clk 0:00:06]}  Kxe6 {[%clk 0:00:10]}
46. Kf3 {[%clk 0:00:07]}  Ke5 {[%clk 0:00:11]} 47. Ke3 {[%clk 0:00:08]}  Kf5 {[%clk 0:00:11]} 48. Ne4 {[%clk 0:00:07]}  Ke5 {[%clk 0:00:09]}
49. Nc5 {[%clk 0:00:08]}  Kf5 {[%clk 0:00:10]} 50. Nxb7 {[%clk 0:00:08]}  Kg4 {[%clk 0:00:12]} 51. Ke4 {[%clk 0:00:09]} 1-0

[Event "2026 Biel Blitz Open"]
[Site "Biel, CH"]
[Date "2026.07.19"]
[Round "1"]
[White "Ling, Chenxuan"]
[Black "Hajduk, Tomasz"]
[Result "1-0"]
[Board "21"]
[TimeControl "180+2"]
[WhiteFideId "30983118"]
[BlackFideId "21811415"]
[WhiteElo "2235"]
[BlackElo "1791"]
[WhiteTitle "CM"]
[WhiteClock "0:02:05"]
[BlackClock "0:01:41"]
[Variant "Standard"]
[EndDate "2026.07.19"]
[EndTime "11:47:32"]

1. h3 {[%clk 0:03:03]}  e5 {[%clk 0:03:03]} 2. e3 {[%clk 0:03:04]}  d5 {[%clk 0:03:04]} 3. d4 {[%clk 0:03:05]}  exd4 {[%clk 0:03:04]}
4. exd4 {[%clk 0:03:06]}  Nf6 {[%clk 0:03:05]} 5. Bd3 {[%clk 0:03:06]}  Nc6 {[%clk 0:03:06]} 6. Ne2 {[%clk 0:03:06]}  Bd6 {[%clk 0:03:06]}
7. O-O {[%clk 0:03:05]}  O-O {[%clk 0:03:07]} 8. c3 {[%clk 0:03:06]}  Re8 {[%clk 0:03:06]} 9. Bf4 {[%clk 0:03:07]}  Ne7 {[%clk 0:02:59]}
10. Nd2 {[%clk 0:03:07]}  Ng6 {[%clk 0:02:59]} 11. Bxd6 {[%clk 0:03:07]}  Qxd6 {[%clk 0:03:00]} 12. Nf3 {[%clk 0:03:07]}  Nf4 {[%clk 0:02:56]}
13. Nxf4 {[%clk 0:03:07]}  Qxf4 {[%clk 0:02:57]} 14. Qd2 {[%clk 0:03:00]}  Qd6 {[%clk 0:02:37]} 15. Rfe1 {[%clk 0:03:00]}  Bd7 {[%clk 0:02:37]}
16. Ne5 {[%clk 0:03:00]}  b6 {[%clk 0:02:21]} 17. Re3 {[%clk 0:03:01]}  c5 {[%clk 0:02:21]} 18. Rae1 {[%clk 0:03:01]}  Bc6 {[%clk 0:02:11]}
19. Rg3 {[%clk 0:03:02]}  Ne4 {[%clk 0:02:05]} 20. Bxe4 {[%clk 0:03:00]}  dxe4 {[%clk 0:02:05]} 21. Qg5 {[%clk 0:03:00]}  g6 {[%clk 0:01:57]}
22. Ng4 {[%clk 0:02:50]}  Re6 {[%clk 0:01:53]} 23. Nh6+ {[%clk 0:02:51]}  Kf8 {[%clk 0:01:51]} 24. Ng4 {[%clk 0:02:36]}  Rae8 {[%clk 0:01:48]}
25. dxc5 {[%clk 0:02:31]}  bxc5 {[%clk 0:01:47]} 26. Qh6+ {[%clk 0:02:12]}  Kg8 {[%clk 0:01:47]} 27. Ne3 {[%clk 0:02:10]}  Qd2 {[%clk 0:01:41]}
28. Rd1 {[%clk 0:02:05]}  Qxb2 {[%clk 0:01:41]} 29. Nf5 {[%clk 0:02:05]} 1-0